lending/lending_fUSD_20251106
["ID","MTS","AMOUNT","RATE_DAILY","PERIOD"]
[393322895,1762471713510,454073.95036838,0.00015,3]
[393322896,1762471748412,4011.168927,7.945e-05,2]
[393322898,1762471809003,899.686119,7.945e-05,2]
[393322909,1762471832049,-999.0,0.00016804,3]
[393322910,1762471832059,-607.0,0.00016958,2]
[393322911,1762471832068,-2353.5080766,0.00017493,2]
[393322912,1762471832077,-221.0,0.00017493,2]
[393322913,1762471832086,-1200.0,0.00017498,2]
[393322914,1762471832095,-1200.0,0.00017499,2]
[393322915,1762471832105,-500.0,0.00017499,2]
[393322916,1762471832114,-500.0,0.00017499,2]
[393322917,1762471832123,-300.0,0.00017499,2]
[393322918,1762471832132,-300.0,0.00017499,2]
[393322919,1762471832141,-500.0,0.00017499,2]
[393322920,1762471832151,-500.0,0.00017499,2]
[393322921,1762471832160,-6974.08371387,0.000175,2]
[393322922,1762471832169,-600.0,0.000175,6]
[393322923,1762471832178,-4584.42712845,0.0001752,2]
[393322924,1762471832187,-500.0,0.00017573,2]
[393322925,1762471832196,-367.00421198,0.00017573,2]
[393322926,1762471832205,-190.82323287,0.00017573,2]
[393322927,1762471832214,-500.0,0.00017573,2]
[393322928,1762471832226,-474.57130954,0.00017573,2]
[393322929,1762471832235,-161.59471818,0.00017573,2]
[393322930,1762471832244,-4584.42712845,0.00017574,2]
[393322931,1762471832254,-2178.0,0.00017583,2]
[393322932,1762471832263,-3272.0,0.00017587,2]
[393322933,1762471832274,-419.37,0.00017595,2]
[393322934,1762471832283,-300.0,0.00017595,2]
[393322935,1762471832293,-900.0,0.000176,6]
[393322936,1762471832305,-574.50092575,0.00017618,2]
[393322937,1762471832314,-477.87911524,0.00017622,2]
[393322938,1762471832323,-4584.42712845,0.00017628,2]
[393322939,1762471832332,-221.80400124,0.00017632,2]
[393322940,1762471832342,-166.66,0.00017635,2]
[393322941,1762471832351,-550.0,0.00017682,2]
[393322942,1762471832361,-4584.42712845,0.00017683,2]
[393322943,1762471832370,-1200.0,0.000177,6]
[393322944,1762471832379,-1000.0,0.000177,2]
[393322945,1762471832388,-831.42,0.000177,2]
[393322946,1762471832398,-327.0,0.00017728,2]
[393322947,1762471832407,-500.0,0.00017736,2]
[393322948,1762471832416,-4584.42712845,0.00017737,2]
[393322949,1762471832425,-200.53683261,0.00017739,2]
[393322950,1762471832434,-2178.0,0.00017749,2]
[393322951,1762471832443,-167.81,0.0001776,2]
[393322952,1762471832453,-893.73840764,0.00017791,2]
[393322953,1762471832462,-4584.42712845,0.00017791,2]
[393322954,1762471832471,-415.71,0.000178,2]
[393322955,1762471832481,-1000.0,0.000178,2]
[393322956,1762471832490,-1500.0,0.000178,6]
[393322957,1762471832500,-329.46,0.00017805,2]
[393322958,1762471832508,-264.00649806,0.00017816,2]
[393322959,1762471832518,-938.42992,0.0001782,2]
[393322960,1762471832528,-4584.42712845,0.00017846,2]
[393322961,1762471832537,-172.12218886,0.00017881,2]
[393322962,1762471832546,-2500.0,0.00017893,3]
[393322963,1762471832559,-291.1007287,0.00017897,2]
[393322964,1762471832569,-11238.90509888,0.00017897,2]
[393322965,1762471832578,-11238.9050988,0.00017897,2]
[393322966,1762471832587,-11238.9050988,0.00017898,2]
[393322967,1762471832597,-11238.9050988,0.00017898,2]
[393322968,1762471832606,-5138.44884618,0.00017898,2]
[393322969,1762471837877,-1319.6449995,0.00017898,2]
[393322970,1762471837893,-4780.81125312,0.00017898,2]
[393322971,1762471837903,-11238.9050988,0.00017899,2]
[393322972,1762471837914,-500.0,0.00017899,2]
[393322973,1762471837924,-500.0,0.00017899,2]
[393322974,1762471837934,-11238.9050988,0.00017899,2]
[393322975,1762471837944,-11238.9050988,0.00017899,2]
[393322976,1762471837954,-11238.9050988,0.000179,2]
[393322977,1762471837963,-4584.42712845,0.000179,2]
[393322978,1762471837973,-300.0,0.000179,6]
[393322979,1762471837983,-11238.9050988,0.000179,2]
[393322980,1762471837994,-500.0,0.000179,2]
[393322981,1762471838004,-500.0,0.000179,2]
[393322982,1762471838013,-500.0,0.000179,2]
[393322983,1762471838024,-500.0,0.000179,2]
[393322984,1762471838034,-500.0,0.000179,2]
[393322985,1762471838044,-2500.0,0.00017902,3]
[393322986,1762471838055,-2500.0,0.00017911,3]
[393322987,1762471838065,-331.19971198,0.00017919,2]
[393322988,1762471838075,-2500.0,0.0001792,3]
[393322989,1762471838085,-2178.0,0.00017927,2]
[393322990,1762471838095,-2500.0,0.00017929,3]
[393322991,1762471838105,-938.42992,0.0001793,2]
[393322992,1762471838114,-5800.0,0.00017931,2]
[393322993,1762471838125,-151.0,0.00017931,2]
[393322994,1762471838135,-151.0,0.00017931,2]
[393322995,1762471838144,-151.0,0.00017931,2]
[393322996,1762471838156,-151.0,0.00017931,2]
[393322997,1762471838166,-151.0,0.00017931,2]
[393322998,1762471838175,-151.878716,0.00017931,2]
[393323000,1762471838184,-151.0,0.00017931,2]
[393323002,1762471838193,-151.0,0.00017931,2]
[393323003,1762471838203,-151.0,0.00017931,2]
[393323005,1762471838213,-151.0,0.00017931,2]
[393323007,1762471838225,-151.0,0.00017931,2]
[393323008,1762471838239,-151.0,0.00017931,2]
[393323009,1762471838249,-151.0,0.00017931,2]
[393323010,1762471838258,-151.0,0.00017931,2]
[393323011,1762471838268,-157.196588,0.00017931,2]
[393323012,1762471838277,-561.44,0.00017931,2]
[393323013,1762471838286,-500.0,0.00017931,2]
[393323014,1762471838296,-150.90925456,0.00017931,2]
[393323015,1762471838308,-203.07808051,0.00017931,2]
[393323016,1762471838317,-152.00625849,0.00017931,2]
[393323018,1762471838326,-150.0,0.00017931,2]
[393323020,1762471838336,-150.0,0.00017931,2]
[393323022,1762471838345,-150.0,0.00017931,2]
[393323023,1762471838354,-150.0,0.00017931,2]
[393323025,1762471838363,-150.0,0.00017931,2]
[393323027,1762471838373,-221.70766361,0.00017931,2]
[393323029,1762471838382,-264.96595259,0.00017931,2]
[393323030,1762471838391,-150.0,0.00017931,2]
[393323031,1762471838400,-500.0,0.00017931,2]
[393323032,1762471838410,-592.0,0.00017931,2]
[393323033,1762471838419,-150.0,0.00017931,2]
[393323034,1762471838429,-211.60455807,0.00017931,2]
[393323035,1762471838438,-150.0,0.00017931,2]
[393323036,1762471838448,-500.0,0.00017931,2]
[393323037,1762471838457,-150.0,0.00017931,2]
[393323038,1762471838467,-500.0,0.00017931,2]
[393323039,1762471838476,-150.0,0.00017931,2]
[393323040,1762471838486,-150.0,0.00017931,2]
[393323041,1762471838495,-500.0,0.00017931,2]
[393323042,1762471838504,-500.0,0.00017931,2]
[393323043,1762471838514,-500.0,0.00017931,2]
[393323044,1762471838524,-150.0,0.00017931,2]
[393323045,1762471838534,-150.0,0.00017931,2]
[393323046,1762471838544,-150.0,0.00017931,2]
[393323047,1762471838554,-250.0,0.00017931,2]
[393323048,1762471838563,-200.0,0.00017931,2]
[393323049,1762471838573,-150.0,0.00017931,2]
[393323050,1762471838582,-500.0,0.00017931,2]
[393323051,1762471838591,-708.8700774,0.00017937,3]
[393323052,1762471838608,-828.39500585,0.00017937,3]
[393323053,1762471838631,-574.0,0.00016958,2]
[393323054,1762471838640,-292.696336,0.00017937,3]
[393323055,1762471838651,-670.03858075,0.00017937,3]
[393323056,1762471838661,-153.431204,0.00017939,2]
[393323057,1762471838671,-151.0,0.00017939,2]
[393323058,1762471838681,-153.593769,0.00017939,2]
[393323059,1762471838690,-168.204733,0.00017939,2]
[393323060,1762471838700,-151.0,0.00017939,2]
[393323061,1762471838709,-151.0,0.00017939,2]
[393323062,1762471838719,-151.0,0.00017939,2]
[393323063,1762471838728,-151.0,0.00017939,2]
[393323064,1762471838738,-151.0,0.00017939,2]
[393323065,1762471838748,-151.0,0.00017939,2]
[393323066,1762471838758,-44.95927783,0.00017939,2]
[393323067,1762471838769,-106.04072217,0.00017939,2]
[393323068,1762471838779,-151.0,0.00017939,2]
[393323069,1762471838789,-151.0,0.00017939,2]
[393323070,1762471838801,-151.0,0.00017939,2]
[393323071,1762471838810,-151.0,0.00017939,2]
[393323072,1762471838820,-152.064819,0.00017939,2]
[393323073,1762471838829,-151.0,0.00017939,2]
[393323074,1762471838839,-151.0,0.00017939,2]
[393323075,1762471838848,-89.39126427,0.00017939,2]
[393323076,1762471838864,-61.60873573,0.00017939,2]
[393323077,1762471838873,-576.94663804,0.0001794,2]
[393323078,1762471838885,-400.0,0.0001794,2]
[393323079,1762471838897,-2307.80385771,0.0001794,2]
[393323080,1762471838909,-1408.85446507,0.0001794,2]
[393323081,1762471840103,-1106.39503918,0.0001794,2]
[393323082,1762471840113,-2500.0,0.00017946,3]
[393323083,1762471840122,-5800.0,0.00017948,2]
[393323084,1762471840131,-151.022211,0.00017948,2]
[393323085,1762471840141,-183.538171,0.00017948,2]
[393323086,1762471840151,-152.879812,0.00017948,2]
[393323088,1762471840160,-199.811807,0.00017948,2]
[393323089,1762471840169,-151.0,0.00017948,2]
[393323091,1762471840178,-151.0,0.00017948,2]
[393323092,1762471840191,-67.60136002,0.00017948,2]
[393323093,1762471840207,-83.39863998,0.00017948,2]
[393323094,1762471840216,-151.0,0.00017948,2]
[393323095,1762471840228,-156.893671,0.00017948,2]
[393323096,1762471840238,-151.0,0.00017948,2]
[393323097,1762471840246,-151.0,0.00017948,2]
[393323098,1762471840257,-151.0,0.00017948,2]
[393323099,1762471840268,-151.0,0.00017948,2]
[393323100,1762471840277,-164.92,0.00017953,2]
[393323101,1762471840287,-2500.0,0.00017955,3]
[393323102,1762471840298,-151.0,0.00017956,2]
[393323103,1762471840308,-163.915331,0.00017956,2]
[393323104,1762471840317,-151.0,0.00017956,2]
[393323105,1762471840327,-151.0,0.00017956,2]
[393323106,1762471840336,-151.0,0.00017956,2]
[393323107,1762471840346,-151.0,0.00017956,2]
[393323108,1762471840355,-151.0,0.00017956,2]
[393323109,1762471840364,-151.0,0.00017956,2]
[393323110,1762471840373,-223.4335,0.00017956,2]
[393323111,1762471840382,-151.0,0.00017956,2]
[393323112,1762471840391,-223.4335,0.00017956,2]
[393323113,1762471840401,-151.0,0.00017956,2]
[393323114,1762471840410,-151.0,0.00017956,2]
[393323115,1762471840419,-151.0,0.00017956,2]
[393323116,1762471840428,-223.4335,0.00017956,2]
[393323117,1762471840438,-223.4335,0.00017956,2]
[393323119,1762471840446,-151.0,0.00017956,2]
[393323120,1762471840456,-151.0,0.00017956,2]
[393323121,1762471840464,-151.0,0.00017956,2]
[393323122,1762471840473,-151.0,0.00017956,2]
[393323123,1762471840482,-151.0,0.00017956,2]
[393323124,1762471840491,-158.385638,0.00017956,2]
[393323125,1762471840501,-151.0,0.00017956,2]
[393323126,1762471840510,-151.0,0.00017956,2]
[393323127,1762471840519,-151.540425,0.00017956,2]
[393323128,1762471840530,-152.462164,0.00017956,2]
[393323129,1762471840539,-239.256457,0.00017956,2]
[393323130,1762471840548,-151.0,0.00017956,2]
[393323131,1762471840557,-151.0,0.00017956,2]
[393323132,1762471840567,-151.0,0.00017956,2]
[393323133,1762471840578,-151.0,0.00017956,2]
[393323134,1762471840587,-151.0,0.00017956,2]
[393323135,1762471840597,-151.0,0.00017956,2]
[393323136,1762471840606,-153.309804,0.00017956,2]
[393323137,1762471840616,-151.0,0.00017956,2]
[393323138,1762471840626,-157.477853,0.00017956,2]
[393323139,1762471840636,-151.0,0.00017956,2]
[393323140,1762471840646,-151.0,0.00017956,2]
[393323141,1762471840656,-151.0,0.00017956,2]
[393323142,1762471840666,-151.216925,0.00017956,2]
[393323143,1762471840675,-151.0,0.00017956,2]
[393323144,1762471840685,-151.0,0.00017956,2]
[393323145,1762471840694,-286.253533,0.00017956,2]
[393323146,1762471840703,-151.0,0.00017956,2]
[393323147,1762471840712,-151.0,0.00017956,2]
[393323148,1762471840721,-151.0,0.00017956,2]
[393323149,1762471840731,-151.0,0.00017956,2]
[393323150,1762471840740,-152.250255,0.00017956,2]
[393323151,1762471840749,-151.0,0.00017956,2]
[393323152,1762471840759,-151.0,0.00017956,2]
[393323153,1762471840769,-151.0,0.00017956,2]
[393323155,1762471840779,-151.0,0.00017956,2]
[393323157,1762471840788,-151.0,0.00017956,2]
[393323159,1762471840797,-151.0,0.00017956,2]
[393323160,1762471840807,-151.0,0.00017956,2]
[393323161,1762471840816,-151.0,0.00017956,2]
[393323162,1762471840826,-151.0,0.00017956,2]
[393323163,1762471840835,-151.0,0.00017956,2]
[393323164,1762471840845,-151.0,0.00017956,2]
[393323165,1762471840854,-151.0,0.00017956,2]
[393323166,1762471840863,-151.0,0.00017956,2]
[393323167,1762471840872,-151.0,0.00017956,2]
[393323168,1762471840882,-151.0,0.00017956,2]
[393323169,1762471840891,-151.0,0.00017956,2]
[393323170,1762471840900,-151.0,0.00017956,2]
[393323171,1762471840910,-151.0,0.00017956,2]
[393323172,1762471840919,-151.0,0.00017956,2]
[393323173,1762471840929,-151.0,0.00017956,2]
[393323174,1762471840938,-151.0,0.00017956,2]
[393323175,1762471840948,-151.0,0.00017956,2]
[393323176,1762471840957,-272.232652,0.00017956,2]
[393323177,1762471840967,-272.232652,0.00017956,2]
[393323178,1762471840977,-272.232652,0.00017956,2]
[393323179,1762471840986,-180.601119,0.00017956,2]
[393323180,1762471840996,-272.232652,0.00017956,2]
[393323181,1762471841006,-151.0,0.00017956,2]
[393323182,1762471841015,-180.601119,0.00017956,2]
[393323183,1762471841025,-180.601119,0.00017956,2]
[393323184,1762471841036,-180.601119,0.00017956,2]
[393323185,1762471841045,-151.0,0.00017956,2]
[393323186,1762471841054,-151.0,0.00017956,2]
[393323187,1762471841064,-151.0,0.00017956,2]
[393323188,1762471841073,-151.0,0.00017956,2]
[393323189,1762471841083,-151.0,0.00017956,2]
[393323190,1762471841092,-151.0,0.00017956,2]
[393323191,1762471841103,-151.0,0.00017956,2]
[393323192,1762471841113,-151.0,0.00017956,2]
[393323193,1762471841122,-151.0,0.00017956,2]
[393323194,1762471841131,-151.0,0.00017956,2]
[393323195,1762471841140,-151.0,0.00017956,2]
[393323196,1762471841150,-236.0,0.00017956,2]
[393323197,1762471841159,-5800.0,0.00017957,2]
[393323198,1762471841168,-820.0,0.00017963,2]
[393323199,1762471841178,-1596.0,0.00017963,2]
[393323200,1762471841187,-812.0,0.00017963,2]
[393323201,1762471841197,-1273.0,0.00017963,2]
[393323202,1762471841207,-151.0,0.00017963,2]
[393323203,1762471841217,-151.0,0.00017963,2]
[393323204,1762471841229,-151.0,0.00017963,2]
[393323205,1762471841241,-151.0,0.00017963,2]
[393323206,1762471841250,-151.0,0.00017963,2]
[393323207,1762471841259,-151.0,0.00017963,2]
[393323208,1762471841271,-151.0,0.00017963,2]
[393323209,1762471841281,-151.0,0.00017963,2]
[393323210,1762471841291,-151.0,0.00017963,2]
[393323211,1762471841301,-252.941812,0.00017963,2]
[393323212,1762471841311,-151.0,0.00017963,2]
[393323213,1762471841320,-151.0,0.00017963,2]
[393323214,1762471841330,-151.0,0.00017963,2]
[393323215,1762471841345,-151.0,0.00017963,2]
[393323216,1762471841359,-151.0,0.00017963,2]
[393323217,1762471841369,-151.0,0.00017963,2]
[393323218,1762471841379,-151.0,0.00017963,2]
[393323219,1762471841388,-151.0,0.00017963,2]
[393323220,1762471841398,-151.0,0.00017963,2]
[393323221,1762471841408,-151.0,0.00017963,2]
[393323222,1762471841417,-151.0,0.00017963,2]
[393323223,1762471841427,-1188.0,0.00017963,2]
[393323224,1762471841436,-905.0,0.00017963,2]
[393323225,1762471841446,-500.0,0.00017963,2]
[393323226,1762471841455,-500.0,0.00017963,2]
[393323227,1762471841466,-2141.0,0.00017963,2]
[393323228,1762471841476,-1369.148,0.00017963,2]
[393323229,1762471841485,-2500.0,0.00017964,3]
[393323230,1762471841495,-5800.0,0.00017965,2]
[393323231,1762471841504,-500.0,0.00017972,2]
[393323232,1762471841513,-2500.0,0.00017973,3]
[393323233,1762471841522,-378.0,0.00017973,2]
[393323234,1762471841533,-500.0,0.00017973,2]
[393323235,1762471841542,-500.0,0.00017973,2]
[393323236,1762471841552,-231.42602229,0.00017973,2]
[393323237,1762471841562,-504.87705627,0.00017973,2]
[393323238,1762471841572,-500.344539,0.00017973,2]
[393323239,1762471841581,-500.0,0.00017973,2]
[393323240,1762471841591,-500.0,0.00017973,2]
[393323241,1762471841600,-500.0,0.00017973,2]
[393323242,1762471841610,-363.10933845,0.00017973,2]
[393323243,1762471841619,-500.0,0.00017973,2]
[393323244,1762471841629,-500.0,0.00017973,2]
[393323245,1762471841638,-500.0,0.00017973,2]
[393323246,1762471841648,-500.0,0.00017973,2]
[393323247,1762471841657,-500.0,0.00017973,2]
[393323248,1762471841667,-152.49763088,0.00017973,2]
[393323249,1762471841676,-500.0,0.00017973,2]
[393323250,1762471841685,-500.0,0.00017973,2]
[393323251,1762471841695,-151.0,0.00017973,2]
[393323252,1762471841704,-151.0,0.00017973,2]
[393323253,1762471841714,-151.0,0.00017973,2]
[393323254,1762471841723,-151.0,0.00017973,2]
[393323255,1762471841732,-151.0,0.00017973,2]
[393323256,1762471841741,-154.022984,0.00017973,2]
[393323257,1762471841750,-151.0,0.00017973,2]
[393323258,1762471841761,-151.0,0.00017973,2]
[393323259,1762471841770,-151.0,0.00017973,2]
[393323260,1762471841779,-151.0,0.00017973,2]
[393323261,1762471841789,-151.0,0.00017973,2]
[393323262,1762471841799,-151.0,0.00017973,2]
[393323263,1762471841821,-151.0,0.00017973,2]
[393323264,1762471841836,-151.0,0.00017973,2]
[393323265,1762471841845,-151.0,0.00017973,2]
[393323266,1762471841854,-160.432344,0.00017973,2]
[393323267,1762471841864,-151.0,0.00017973,2]
[393323268,1762471841874,-167.170544,0.00017973,2]
[393323269,1762471841883,-151.0,0.00017973,2]
[393323270,1762471841892,-153.086499,0.00017973,2]
[393323271,1762471841902,-151.0,0.00017973,2]
[393323272,1762471841911,-151.806492,0.00017973,2]
[393323273,1762471841920,-272.232652,0.00017973,2]
[393323274,1762471841929,-272.232652,0.00017973,2]
[393323275,1762471841939,-272.232652,0.00017973,2]
[393323276,1762471841949,-180.601119,0.00017973,2]
[393323277,1762471841958,-272.232652,0.00017973,2]
[393323278,1762471841967,-180.601119,0.00017973,2]
[393323279,1762471841976,-180.601119,0.00017973,2]
[393323280,1762471841985,-180.601119,0.00017973,2]
[393323281,1762471841995,-151.0,0.00017973,2]
[393323282,1762471842004,-151.0,0.00017973,2]
[393323283,1762471842013,-151.0,0.00017973,2]
[393323284,1762471842029,-151.0,0.00017973,2]
[393323285,1762471842038,-151.0,0.00017973,2]
[393323286,1762471842047,-187.376824,0.00017973,2]
[393323287,1762471842057,-151.0,0.00017973,2]
[393323288,1762471842066,-151.0,0.00017973,2]
[393323289,1762471842076,-299.240571,0.00017973,2]
[393323290,1762471842085,-151.0,0.00017973,2]
[393323291,1762471842094,-5800.0,0.00017973,2]
[393323292,1762471842103,-2500.0,0.00017981,3]
[393323293,1762471842112,-5800.0,0.00017982,2]
[393323294,1762471842121,-151.0,0.00017982,2]
[393323295,1762471842130,-151.0,0.00017982,2]
[393323296,1762471842139,-151.0,0.00017982,2]
[393323297,1762471842148,-153.416407,0.00017982,2]
[393323298,1762471842157,-151.0,0.00017982,2]
[393323299,1762471842166,-151.0,0.00017982,2]
[393323300,1762471842175,-151.0,0.00017982,2]
[393323301,1762471842184,-223.4335,0.00017982,2]
[393323302,1762471842193,-151.0,0.00017982,2]
[393323303,1762471842203,-223.4335,0.00017982,2]
[393323304,1762471842211,-151.0,0.00017982,2]
[393323305,1762471842221,-151.0,0.00017982,2]
[393323306,1762471842233,-151.0,0.00017982,2]
[393323307,1762471842242,-223.4335,0.00017982,2]
[393323308,1762471842251,-223.4335,0.00017982,2]
[393323309,1762471842260,-151.0,0.00017982,2]
[393323310,1762471842270,-151.0,0.00017982,2]
[393323311,1762471842280,-151.0,0.00017982,2]
[393323312,1762471842289,-151.0,0.00017982,2]
[393323313,1762471842298,-151.0,0.00017982,2]
[393323314,1762471842310,-151.0,0.00017982,2]
[393323315,1762471842320,-151.0,0.00017982,2]
[393323316,1762471842329,-151.0,0.00017982,2]
[393323317,1762471842338,-151.0,0.00017982,2]
[393323318,1762471842347,-151.0,0.00017982,2]
[393323319,1762471842355,-151.0,0.00017982,2]
[393323320,1762471842364,-151.0,0.00017982,2]
[393323321,1762471842374,-151.0,0.00017982,2]
[393323322,1762471842383,-151.0,0.00017982,2]
[393323323,1762471842392,-154.082865,0.00017982,2]
[393323324,1762471842401,-151.0,0.00017982,2]
[393323325,1762471842410,-151.0,0.00017982,2]
[393323326,1762471842419,-151.0,0.00017982,2]
[393323327,1762471842431,-151.0,0.00017982,2]
[393323328,1762471842440,-151.0,0.00017982,2]
[393323329,1762471842449,-151.0,0.00017982,2]
[393323330,1762471842458,-157.192835,0.00017982,2]
[393323331,1762471842467,-151.0,0.00017982,2]
[393323332,1762471842476,-151.0,0.00017982,2]
[393323333,1762471842485,-151.0,0.00017982,2]
[393323334,1762471842495,-151.0,0.00017982,2]
[393323335,1762471842504,-153.895,0.00017982,2]
[393323336,1762471842514,-151.0,0.00017982,2]
[393323337,1762471842523,-151.0,0.00017982,2]
[393323338,1762471842533,-151.0,0.00017982,2]
[393323339,1762471842542,-1017.561155,0.00017982,2]
[393323340,1762471842551,-1017.561155,0.00017982,2]
[393323341,1762471842560,-151.0,0.00017982,2]
[393323342,1762471842569,-1017.561155,0.00017982,2]
[393323343,1762471842579,-151.0,0.00017982,2]
[393323344,1762471842588,-1017.561155,0.00017982,2]
[393323345,1762471842597,-151.0,0.00017982,2]
[393323346,1762471842606,-151.0,0.00017982,2]
[393323347,1762471842615,-679.196832,0.00017982,2]
[393323348,1762471842624,-151.0,0.00017982,2]
[393323349,1762471842633,-679.196832,0.00017982,2]
[393323350,1762471842642,-151.0,0.00017982,2]
[393323351,1762471842651,-679.196832,0.00017982,2]
[393323352,1762471842660,-151.0,0.00017982,2]
[393323353,1762471842670,-151.0,0.00017982,2]
[393323354,1762471842679,-151.0,0.00017982,2]
[393323355,1762471842687,-679.196832,0.00017982,2]
[393323356,1762471842696,-151.0,0.00017982,2]
[393323357,1762471842705,-151.0,0.00017982,2]
[393323358,1762471842714,-151.0,0.00017982,2]
[393323359,1762471842723,-151.0,0.00017982,2]
[393323360,1762471842732,-178.432,0.00017982,2]
[393323361,1762471842740,-151.0,0.00017982,2]
[393323362,1762471842749,-151.0,0.00017982,2]
[393323363,1762471842762,-151.0,0.00017982,2]
[393323364,1762471842770,-152.363435,0.00017982,2]
[393323365,1762471842780,-151.0,0.00017982,2]
[393323366,1762471842789,-151.0,0.00017982,2]
[393323367,1762471842798,-151.0,0.00017982,2]
[393323368,1762471842807,-151.0,0.00017982,2]
[393323369,1762471842816,-151.0,0.00017982,2]
[393323370,1762471842825,-151.0,0.00017982,2]
[393323371,1762471842834,-151.0,0.00017982,2]
[393323372,1762471842843,-151.0,0.00017982,2]
[393323373,1762471842853,-151.0,0.00017982,2]
[393323374,1762471842862,-151.758496,0.00017982,2]
[393323375,1762471842871,-151.0,0.00017982,2]
[393323376,1762471842880,-151.0,0.00017982,2]
[393323377,1762471842890,-5800.0,0.00017982,2]
[393323378,1762471842899,-300.0,0.00017984,2]
[393323379,1762471842909,-151.0,0.0001799,2]
[393323380,1762471842918,-151.0,0.0001799,2]
[393323381,1762471842927,-151.0,0.0001799,2]
[393323383,1762471842937,-151.0,0.0001799,2]
[393323385,1762471842946,-444.934857,0.0001799,2]
[393323387,1762471842955,-444.934857,0.0001799,2]
[393323389,1762471842964,-444.934857,0.0001799,2]
[393323391,1762471842973,-444.934857,0.0001799,2]
[393323393,1762471842983,-151.0,0.0001799,2]
[393323395,1762471842993,-151.0,0.0001799,2]
[393323397,1762471843003,-357.809337,0.0001799,2]
[393323399,1762471843012,-2873.642831,0.0001799,2]
[393323400,1762471843021,-357.809337,0.0001799,2]
[393323401,1762471843031,-2873.642831,0.0001799,2]
[393323403,1762471843040,-357.809337,0.0001799,2]
[393323405,1762471843049,-2873.642831,0.0001799,2]
[393323407,1762471843058,-357.809337,0.0001799,2]
[393323409,1762471843067,-2873.642831,0.0001799,2]
[393323411,1762471843076,-151.0,0.0001799,2]
[393323413,1762471843085,-151.0,0.0001799,2]
[393323415,1762471843094,-151.0,0.0001799,2]
[393323417,1762471843103,-151.0,0.0001799,2]
[393323419,1762471843112,-151.0,0.0001799,2]
[393323421,1762471843121,-806.577705,0.0001799,2]
[393323423,1762471843130,-2500.0,0.0001799,3]
[393323425,1762471843139,-5800.0,0.0001799,2]
[393323427,1762471843147,-1000.0,0.00017996,2]
[393323429,1762471843157,-500.0,0.00017996,2]
[393323431,1762471843165,-500.0,0.00017996,2]
[393323433,1762471843174,-500.0,0.00017996,2]
[393323435,1762471843183,-500.0,0.00017996,2]
[393323437,1762471843192,-151.0,0.00017996,2]
[393323439,1762471843201,-151.0,0.00017996,2]
[393323441,1762471843210,-151.0,0.00017996,2]
[393323443,1762471843219,-155.554201,0.00017996,2]
[393323445,1762471843232,-151.0,0.00017996,2]
[393323447,1762471843241,-270.284275,0.00017996,2]
[393323449,1762471843250,-151.0,0.00017996,2]
[393323451,1762471843258,-151.0,0.00017996,2]
[393323453,1762471843269,-500.0,0.00017996,2]
[393323455,1762471843278,-500.0,0.00017996,2]
[393323456,1762471843287,-500.0,0.00017996,2]
[393323457,1762471843296,-500.0,0.00017996,2]